{"text_format":"1","workbook":"xlsx","n_sheets":1,"sheets":["ورقة1"],"not_rendered":{"charts":0,"images":0,"macros":1,"external_links":0,"defined_names":1,"comments":0,"pivot_tables":0},"unopened":[],"bounds":{"document_bytes":16777216,"sheet_cells":100000,"rows_first":2000,"rows_last":500,"rows_between":2000,"halvings":0,"cell_chars":16384,"cell_head_chars":4096},"cells_cut":0,"cells_raw":0,"read":"whole","date_system":"1900"}

{"sheet":"ورقة1","index":0,"n_rows":32,"n_cols":15,"rows_kept":32,"cut":false,"hidden":false,"merged":[]}
["قائمة A","اسم الام","رقم التسجيل الخاص ببطاقة الماستركارد","رقم الايصال","الوزارة","القسم","مديرية / هيئة عامه","الحاله","رقم الحساب","رقم بطاقة كي","iban","قائمةB","القائمة A","القائمة B"]
["جوان طارق حسين الجميلي","سميه نجم جاسم","00305042708815","10001569709","وزارة التربية","الكفل الابتدائية المختلطة","المديرية العامة لتربية ديالى","تم تكوين البطاقات","0107946220","6330150215347635","IQ95RAFB098010002193662","ساره جليل عباس غفور",{"$f":"IF(ISNUMBER(MATCH($A2,$L$2:$L$32,0)),\"Ok\",\"No\")","v":"No"},{"$f":"IF(ISNUMBER(MATCH($L2,$A$2:$A$32,0)),\"Ok\",\"No\")","v":"No"},"تيسير ابراهيم احمد"]
["تيسير ابراهيم احمد","احرار عبدالستار","90314085647218","10000655628","وزارة التربية","ألسعدون","المديرية العامة لتربية ديالى","تم تسليم البطاقه","0109377564","6330151679789833","IQ41RAFB098010001592264","علي حميد حسين","Ok","No","صالح اسعد نجرس خلف"]
["سلوى سعدون الياس","هاجر علي","90804074945231","10000990466","وزارة التربية","ع/ فتيات المستقبل","المديرية العامة لتربية ديالى","تم تكوين البطاقات","0112185491",null,"IQ23RAFB098010001654183","تيسير ابراهيم احمد","No","Ok","عباس فالح محمود شطب"]
["ناصر حسن جواد كاظم","وطفه غلام جعفر","90713012039411","10000949538","وزارة التربية","الرياض","المديرية العامة لتربية ديالى","تم تسليم البطاقه","0117194605",null,"IQ92RAFB098010001644599","مصطفى كمال ادهم ابراهيم","Ok","No","علي سهيل عبود الكرغولي"]
["نبيل جليل حسين علي","رجاء شاكر محمود","90528033852922","10000862727","وزارة التربية","م الوسيلة","المديرية العامة لتربية ديالى","تم تسليم البطاقه","0122562762",null,"IQ63RAFB098010001690808","وهران محمد حيدر محمود","No","No","فضاء علي رضا مصطفى"]
["صالح اسعد نجرس خلف","غنيه جاسم محمد","170822053217","1024547851","وزارة التربية","الخليج العربي","المديرية العامة لتربية ديالى","تم تكوين البطاقات","0126295773",null,"IQ98RAFB098010001593760","صالح اسعد نجرس خلف","Ok","Ok","ناصر حسن جواد كاظم"]
["اياد عدنان خسرو الخالدي","ليلى احمد موسى","00305042711368","10001570044","وزارة التربية","ابن طفيل الابتدائية المختلطة","المديرية العامة لتربية ديالى","تم تكوين البطاقات","0135465292","6330157325052252","IQ64RAFB098010002199264","جاسم علي صادق بكر","No","No"]
["يسرى طاهر وهاب التميمي","ليلي ناصر كاكي","00305030644594","10001568360","وزارة التربية","ثانوية الصباح المختلطة","المديرية العامة لتربية ديالى","تم تكوين البطاقات","0145036596","6330154932481750","IQ10RAFB098010002194707","ريم صالح مجيد","No","No"]
["بشرى طاهر علوان","عادلية حسين","90512103059947","10000832065","وزارة التربية","قطر الندى","المديرية العامة لتربية ديالى","تم تسليم البطاقه","0151762788","6330152770198882","IQ78RAFB098010001689859","زهراء غالب حيدر","No","No"]
["رياض عبدالله نجم العزاوي","عمشه احمد جاسم","00305030641840","10001568073","وزارة التربية","مولد النور الابتدائية","المديرية العامة لتربية ديالى","تم تكوين البطاقات","0157638768","6330150788277680","IQ62RAFB098010002203180","ضياء حسين احمد","No","No"]
["سعد جميل كريم لطيف","حسنيه علي جاسم","90429110232950","10000748960","وزارة التربية","روضة الزنابق","المديرية العامة لتربية ديالى","تم تسليم البطاقه","0166744177","0","IQ64RAFB098010001696319","يوسف عباس كاظم","No","No"]
["عباس فالح محمود شطب","فطيم  علي  خضير","91221085731672","10001288673","وزارة التربية","ألبركه","المديرية العامة لتربية ديالى","تم تسليم البطاقه","0169945292","6330159553134505","IQ74RAFB098010001935535","ياسر علي حسن","Ok","No"]
["عفاف حسن علي فياض","لمياء علي صالح","90925083836594","10001092376","وزارة التربية","ع التحدي المهنيه للبنات","المديرية العامة لتربية ديالى","تم تسليم البطاقه","0173485558",null,"IQ07RAFB098010001747106","ياس خضير عباس جرداغ","No","No"]
["محمود طاهر كاظم","بدريه عبد جاسم","90512052652960","10000831983","وزارة التربية","قصر الحمراء","المديرية العامة لتربية ديالى","تم تسليم البطاقه","0177682440","0","IQ47RAFB098010001689835","عباس فالح محمود شطب","No","Ok"]
["قاسم حسن محمود حسين","نهله رسول محمد","90707102225535","10000937756","وزارة التربية","الاقلام","المديرية العامة لتربية ديالى","تم تسليم البطاقه","0187943782",null,"IQ56RAFB098010001643307","يونس حيدر حسون حاجم","No","No"]
["نور عامر لطيف","نضال سعدون","90610110438093","10000878658","وزارة التربية","العصماء","المديرية العامة لتربية ديالى","تم تكوين البطاقات","0204600522",null,"IQ70RAFB098010001603188","وهاب حسين حسن جواد","No","No"]
["اميره ياسين سليمان متي","مريم عبدالله متي","90828113417764","10001022150","وزارة التربية","ث/ التأميم","المديرية العامة لتربية ديالى","تم تسليم البطاقه","0207975343",null,"IQ09RAFB098010001678491","ساميه مسرهد جاسم","No","No"]
["كفاح كاظم حميد التميمي","نجديه عباس جدوع","00305030639697","10001567852","وزارة التربية","الهويدر الابتدائية للبنين","المديرية العامة لتربية ديالى","تم تكوين البطاقات","0215682212","6330029890023069","IQ07RAFB098010002189814","اميرة ياسين سليمان متي","No","No"]
["زينب سالم احمد صالح","بدره علي مجيد","90720073517984","10000962750","وزارة التربية","قباء","المديرية العامة لتربية ديالى","تم تكوين البطاقات","0216724138",null,"IQ51RAFB098010001628750","ياسر جعفر شهاب","No","No"]
["سعاد مجيد وادي بربوتي","فهيمه محمد ناصر","90622121918648","10000900945","وزارة التربية","المعري","المديرية العامة لتربية ديالى","تم تسليم البطاقه","0223944919",null,"IQ88RAFB098010001639530","وهران عبد علي عباس","No","No"]
["ميثاق عبد الباري جاسم","شكريه علوان","91126104853754","10001227310","وزارة التربية","م الزكاة","المديرية العامة لتربية ديالى","تم تسليم البطاقه","0231212606",null,"IQ02RAFB098010001859910","ناصر حسن جواد كاظم","No","Ok"]
["نبراس عبدالكريم محمود احمد","غنيه عبدالامير عباس","90723124442658","10000965469","وزارة التربية","ث لقمان الحكيم","المديرية العامة لتربية ديالى","تم تسليم البطاقه","0234321040",null,"IQ59RAFB098010001646454","انتصار عيسى رمان","No","No"]
["علي سهيل عبود الكرغولي","سلمى عبود هادي","00305042714223","10001570425","وزارة التربية","م التالق للبنين","المديرية العامة لتربية ديالى","تم تكوين البطاقات","0236746756","6330150435557120","IQ53RAFB098010002195485","عبدالسلام صبري داود","Ok","No"]
["ازهار ستار صالح جاسم","نزيمه حميد معروف","90610115213734","10000882506","وزارة التربية","م/ شبعاد","المديرية العامة لتربية ديالى","تم تسليم البطاقه","0238413199",null,"IQ03RAFB098010001638538","جاسم محمد حميد حسين","No","No"]
["فؤاد عايش مخلف مضحي","جميله خلف صالح","90317100715231","10000657615","وزارة التربية","ث المامون","المديرية العامة لتربية ديالى","تم تسليم البطاقه","0242123644","0","IQ30RAFB098010001592365","عبدالرحمن قادرعلاوي ماموك","No","No"]
["علي محمد حسن الخفاجي","شمهوده جواد مروح","00305030647017","10001568624","وزارة التربية","ساقي الحرمين الابتدائية","المديرية العامة لتربية ديالى","تم تكوين البطاقات","0245560875","6330152514220463","IQ23RAFB098010002189623","علي سهيل عبود الكرغولي","No","Ok"]
["صفا موفق مزهر فهمي","ابتسام محمد صالح احمد","90610120328336","10000882565","وزارة التربية","ث المروة","المديرية العامة لتربية ديالى","تم تكوين البطاقات","0253132641",null,"IQ10RAFB098010001603201","انتصار اسماعيل خليل","No","No"]
["محمد كاظم جواد رضا","فطومه محمد عبد","90618091718859","10000897585","وزارة التربية","الفلاح","المديرية العامة لتربية ديالى","تم تسليم البطاقه","0256193541",null,"IQ89RAFB098010001639221","عباس علي حسين عبد الله","No","No"]
["انور كريم كرجي نصيف","كريمة حسن كاظم","170827031301","5828115047","وزارة التربية","القيم الابتدائية","المديرية العامة لتربية ديالى","تم تسليم البطاقه","0256848813",null,"IQ41RAFB098010001596726","عدنان خسرو رشيد عويد","No","No"]
["فضاء علي رضا مصطفى","سعاد احمد مصطفى","00225093754634","10001484073","وزارة التربية","مدرسة القاهرة","المديرية العامة لتربية ديالى","تم تكوين البطاقات","0264793480",null,"IQ24RAFB098010002142560","فضاء علي رضا مصطفى","Ok","Ok"]
["محمود حسين منصور الكرخي","خيريه حمادي جابر","00305042710639","10001569950","وزارة التربية","ساقي الحرمين الابتدائية","المديرية العامة لتربية ديالى","تم تكوين البطاقات","0272528936","6330154071083524","IQ75RAFB098010002199163","رؤى محمد عيدان خلف","No","No"]